[Event "44th Chess Olympiad Women 2022"]
[Site "Chennai"]
[Date "2022.08.08"]
[Round "10.36"]
[White "Coro, Soledad"]
[Black "Mariam, Essa"]
[Result "1/2-1/2"]
[WhiteElo "1623"]
[BlackElo "1591"]
[Annotator "NA RC"]
[PlyCount "88"]
[EventDate "2022.??.??"]
[TimeControl "60"]

1. c4 {[%emt 0:00:04]} c5 {[%emt 0:00:06]} 2. g3 {[%emt 0:00:04]} g6 {[%emt 0:
00:00]} 3. Bg2 {[%emt 0:00:07]} Bg7 {[%emt 0:00:08]} 4. Nf3 {[%emt 0:00:19]}
Nf6 {[%emt 0:01:14]} 5. O-O {[%emt 0:00:09]} Nc6 {[%emt 0:01:44]} 6. Nc3 {
[%emt 0:00:06]} e5 {[%emt 0:03:04]} 7. d3 {[%emt 0:00:17]} d6 {[%emt 0:00:15]}
8. Rb1 {[%emt 0:00:12]} O-O {[%emt 0:01:35]} 9. Bd2 {[%emt 0:01:18]} Rb8 {
[%emt 0:04:44]} 10. a3 {[%emt 0:03:55]} a5 {[%emt 0:00:47]} 11. Qc1 {[%emt 0:
00:00]} Bg4 {[%emt 0:08:13]} 12. h3 {[%emt 0:00:13]} Bxf3 {[%emt 0:00:31]} 13.
Bxf3 {[%emt 0:00:07]} Nd4 {[%emt 0:00:12]} 14. Bg2 {[%emt 0:00:24]} d5 {
[%emt 0:17:17]} 15. cxd5 {[%emt 0:05:22]} b5 {[%emt 0:00:36]} 16. Re1 {[%emt 0:
00:00]} Nb3 {[%emt 0:01:39]} 17. Qd1 {[%emt 0:09:20]} a4 {[%emt 0:05:07]} 18.
Bg5 {[%emt 0:00:42]} Qd7 {[%emt 0:03:15]} 19. Bxf6 {[%emt 0:00:24]} Bxf6 {
[%emt 0:00:04]} 20. Ne4 {[%emt 0:00:15]} Bg7 {[%emt 0:00:15]} 21. Nd2 {[%emt 0:
00:00]} Nd4 {[%emt 0:02:15]} 22. e3 {[%emt 0:10:53]} Nf5 {[%emt 0:00:11]} 23.
Ne4 {[%emt 0:05:59]} Rfc8 {[%emt 0:00:34]} 24. Rc1 {[%emt 0:02:44]} c4 {
[%emt 0:02:28]} 25. dxc4 {[%emt 0:00:28]} bxc4 {[%emt 0:00:07]} 26. Qe2 {
[%emt 0:00:33]} Ne7 {[%emt 0:13:42]} 27. d6 {[%emt 0:15:04]} Nd5 {[%emt 0:00:
00]} 28. Rxc4 {[%emt 0:07:39]} f5 {[%emt 0:00:11]} 29. Nc3 {[%emt 0:15:00]}
Nxc3 {[%emt 0:01:06]} 30. bxc3 {[%emt 0:01:03]} Qxd6 {[%emt 0:02:50]} 31. Rxa4
{[%emt 0:00:16]} e4 {[%emt 0:00:47]} 32. Rd1 {[%emt 0:00:45]} Qc6 {[%emt 0:00:
00]} 33. Ra7 {[%emt 0:01:18]} Qxc3 {[%emt 0:04:51]} 34. Qa2+ {[%emt 0:00:28]}
Kh8 {[%emt 0:01:15]} 35. Qf7 {[%emt 0:00:13]} Ra8 {[%emt 0:09:57]} 36. Rad7 {
[%emt 0:00:45]} Rf8 {[%emt 0:00:08]} 37. Qe7 {[%emt 0:00:37]} Qf6 {[%emt 0:00:
00]} 38. Qb4 {[%emt 0:01:00]} Rfb8 {[%emt 0:05:27]} 39. Qc5 {[%emt 0:00:23]}
Qc3 {[%emt 0:03:02]} 40. Qe7 {[%emt 0:00:23]} Qf6 {[%emt 0:01:18]} 41. Qc5 {
[%emt 0:07:43]} Bf8 {[%emt 0:06:10]} 42. Qc7 {[%emt 0:01:18]} Rc8 {[%emt 0:00:
00]} 43. Qb7 {[%emt 0:00:19]} Rcb8 {[%emt 0:04:14]} 44. Qc7 {[%emt 0:03:39]}
Rc8 {[%emt 0:00:07]} 1/2-1/2

[Event "44th Chess Olympiad Women 2022"]
[Site "Chennai"]
[Date "2022.08.08"]
[Round "10.36"]
[White "Molina, Jessica"]
[Black "Al Maamari, Wafia Darwish"]
[Result "0-1"]
[WhiteElo "1889"]
[BlackElo "1841"]
[Annotator "NA RC"]
[PlyCount "138"]
[EventDate "2022.??.??"]
[TimeControl "60"]

1. d4 {[%emt 0:00:03]} Nf6 {[%emt 0:00:09]} 2. Nf3 {[%emt 0:00:12]} d5 {
[%emt 0:00:53]} 3. Bf4 {[%emt 0:00:10]} c6 {[%emt 0:00:24]} 4. c3 {[%emt 0:00:
00]} Qb6 {[%emt 0:06:08]} 5. Qb3 {[%emt 0:00:15]} Bf5 {[%emt 0:01:49]} 6. Nbd2
{[%emt 0:00:57]} h6 {[%emt 0:03:25]} 7. e3 {[%emt 0:01:44]} Nbd7 {[%emt 0:00:
00]} 8. h3 {[%emt 0:04:58]} e6 {[%emt 0:00:41]} 9. Ne5 {[%emt 0:00:48]} Nxe5 {
[%emt 0:04:10]} 10. Bxe5 {[%emt 0:00:21]} Nd7 {[%emt 0:01:08]} 11. Bg3 {
[%emt 0:01:16]} Be7 {[%emt 0:02:03]} 12. f3 {[%emt 0:04:00]} Nf6 {[%emt 0:00:
00]} 13. Qxb6 {[%emt 0:02:04]} axb6 {[%emt 0:00:12]} 14. Bc7 {[%emt 0:02:12]}
b5 {[%emt 0:01:08]} 15. g4 {[%emt 0:00:29]} Bh7 {[%emt 0:01:57]} 16. h4 {
[%emt 0:03:29]} Kd7 {[%emt 0:02:38]} 17. Be5 {[%emt 0:02:35]} Rhg8 {[%emt 0:00:
00]} 18. Be2 {[%emt 0:03:00]} Ne8 {[%emt 0:04:19]} 19. e4 {[%emt 0:02:15]} f6 {
[%emt 0:02:24]} 20. Bg3 {[%emt 0:00:34]} Nd6 {[%emt 0:01:02]} 21. Bd3 {[%emt 0:
00:00]} Nc4 {[%emt 0:05:02]} 22. b3 {[%emt 0:02:40]} Nxd2 {[%emt 0:03:37]} 23.
Kxd2 {[%emt 0:02:00]} dxe4 {[%emt 0:00:19]} 24. fxe4 {[%emt 0:01:14]} Ra3 {
[%emt 0:00:56]} 25. Kc2 {[%emt 0:00:40]} Rga8 {[%emt 0:00:38]} 26. Kb2 {
[%emt 0:00:20]} b4 {[%emt 0:04:47]} 27. c4 {[%emt 0:01:47]} b6 {[%emt 0:02:46]}
28. Rhd1 {[%emt 0:04:31]} R8a5 {[%emt 0:09:02]} 29. Bf2 {[%emt 0:04:14]} Bd6 {
[%emt 0:00:19]} 30. Bc2 {[%emt 0:01:47]} Ke7 {[%emt 0:02:10]} 31. e5 {[%emt 0:
00:00]} Bxc2 {[%emt 0:02:09]} 32. exd6+ {[%emt 0:00:08]} Kd7 {[%emt 0:00:11]}
33. Rdc1 {[%emt 0:02:23]} Be4 {[%emt 0:01:36]} 34. c5 {[%emt 0:00:25]} bxc5 {
[%emt 0:01:57]} 35. dxc5 {[%emt 0:00:28]} Bd5 {[%emt 0:01:01]} 36. Be1 {
[%emt 0:01:05]} Rb5 {[%emt 0:01:42]} 37. Bxb4 {[%emt 0:00:55]} Ra8 {[%emt 0:00:
00]} 38. Bd2 {[%emt 0:01:34]} e5 {[%emt 0:03:23]} 39. b4 {[%emt 0:01:23]} Ra4 {
[%emt 0:01:08]} 40. a3 {[%emt 0:00:31]} Rb7 {[%emt 0:02:20]} 41. g5 {[%emt 0:
00:00]} hxg5 {[%emt 0:31:13]} 42. hxg5 {[%emt 0:00:19]} Ke6 {[%emt 0:00:32]}
43. Rg1 {[%emt 0:05:46]} f5 {[%emt 0:03:39]} 44. Rae1 {[%emt 0:00:52]} Ra5 {
[%emt 0:01:04]} 45. Be3 {[%emt 0:04:56]} g6 {[%emt 0:01:04]} 46. Bd4 {[%emt 0:
00:00]} Be4 {[%emt 0:00:13]} 47. Be3 {[%emt 0:05:38]} Ra4 {[%emt 0:00:00]} 48.
Kb3 {[%emt 0:00:00]} Rba7 {[%emt 0:00:00]} 49. Bc1 {[%emt 0:00:00]} Bd5+ {
[%emt 0:00:00]} 50. Kc3 {[%emt 0:00:00]} Rh7 {[%emt 0:00:00]} 51. Rg3 {[%emt 0:
00:00]} Rh4 {[%emt 0:00:00]} 52. Rge3 {[%emt 0:00:00]} e4 {[%emt 0:00:00]} 53.
R1e2 {[%emt 0:00:00]} Rh1 {[%emt 0:00:00]} 54. Bb2 {[%emt 0:00:00]} Rh5 {
[%emt 0:00:00]} 55. Rd2 {[%emt 0:00:00]} Ra7 {[%emt 0:00:00]} 56. Rde2 {
[%emt 0:00:00]} Rxg5 {[%emt 0:00:00]} 57. Rh2 {[%emt 0:00:00]} f4 {[%emt 0:00:
00]} 58. Reh3 {[%emt 0:00:00]} Rf7 {[%emt 0:00:00]} 59. Rh7 {[%emt 0:00:45]}
Rg3+ {[%emt 0:00:00]} 60. Kd2 {[%emt 0:02:00]} Rd3+ {[%emt 0:00:00]} 61. Kc1 {
[%emt 0:03:52]} Bb3 {[%emt 0:00:00]} 62. Bh8 {[%emt 0:00:16]} f3 {[%emt 0:00:
00]} 63. Rxf7 {[%emt 0:08:00]} Kxf7 {[%emt 0:00:03]} 64. Be5 {[%emt 0:03:10]}
e3 {[%emt 0:02:06]} 65. Rh7+ {[%emt 0:01:14]} Ke6 {[%emt 0:00:20]} 66. Re7+ {
[%emt 0:00:33]} Kf5 {[%emt 0:00:17]} 67. Bg3 {[%emt 0:00:58]} f2 {[%emt 0:00:
00]} 68. Rxe3 {[%emt 0:02:51]} f1=Q+ {[%emt 0:00:37]} 69. Re1 {[%emt 0:00:08]}
Rd1+ {[%emt 0:00:13]} 0-1

[Event "44th Chess Olympiad Women 2022"]
[Site "Chennai"]
[Date "2022.08.08"]
[Round "10.36"]
[White "Rouda Essa, Alserkal"]
[Black "Monroy G., Nataly A."]
[Result "0-1"]
[WhiteElo "1874"]
[BlackElo "1907"]
[Annotator "NA RC"]
[PlyCount "66"]
[EventDate "2022.??.??"]
[TimeControl "60"]

1. e4 {[%emt 0:00:02]} c5 {[%emt 0:00:13]} 2. Nf3 {[%emt 0:00:04]} Nc6 {
[%emt 0:00:23]} 3. d4 {[%emt 0:00:05]} cxd4 {[%emt 0:00:07]} 4. Nxd4 {[%emt 0:
00:00]} g6 {[%emt 0:00:38]} 5. Nc3 {[%emt 0:00:05]} Bg7 {[%emt 0:00:47]} 6. Be3
{[%emt 0:00:09]} Nf6 {[%emt 0:00:25]} 7. Bc4 {[%emt 0:00:07]} O-O {[%emt 0:00:
00]} 8. Bb3 {[%emt 0:02:41]} d6 {[%emt 0:04:00]} 9. f3 {[%emt 0:00:17]} Bd7 {
[%emt 0:03:39]} 10. Qd2 {[%emt 0:00:27]} a6 {[%emt 0:03:19]} 11. O-O-O {
[%emt 0:00:26]} Rc8 {[%emt 0:01:30]} 12. g4 {[%emt 0:02:01]} Ne5 {[%emt 0:00:
00]} 13. h4 {[%emt 0:01:28]} h5 {[%emt 0:11:38]} 14. Bh6 {[%emt 0:03:45]} Nc4 {
[%emt 0:01:42]} 15. Bxc4 {[%emt 0:00:23]} Rxc4 {[%emt 0:00:06]} 16. Bxg7 {
[%emt 0:02:25]} Kxg7 {[%emt 0:00:05]} 17. Nd5 {[%emt 0:13:43]} Rh8 {[%emt 0:00:
00]} 18. Nxf6 {[%emt 0:06:59]} exf6 {[%emt 0:00:09]} 19. Ne2 {[%emt 0:06:31]}
Qc7 {[%emt 0:02:46]} 20. Nc3 {[%emt 0:07:13]} Be6 {[%emt 0:04:31]} 21. Rh2 {
[%emt 0:04:26]} Qa5 {[%emt 0:10:15]} 22. Qxd6 {[%emt 0:07:03]} hxg4 {[%emt 0:
00:00]} 23. fxg4 {[%emt 0:01:18]} Bxg4 {[%emt 0:00:20]} 24. Rf1 {[%emt 0:04:51]
} Qe5 {[%emt 0:01:52]} 25. Qd2 {[%emt 0:01:03]} Be6 {[%emt 0:03:50]} 26. Qf2 {
[%emt 0:09:39]} Rxc3 {[%emt 0:10:15]} 27. bxc3 {[%emt 0:00:32]} Qxc3 {[%emt 0:
00:00]} 28. Kb1 {[%emt 0:01:47]} Qb4+ {[%emt 0:02:29]} 29. Ka1 {[%emt 0:00:41]}
Qc3+ {[%emt 0:00:36]} 30. Kb1 {[%emt 0:00:08]} Rh5 {[%emt 0:07:54]} 31. e5 {
[%emt 0:04:19]} Qxe5 {[%emt 0:00:14]} 32. Qf4 {[%emt 0:00:22]} Qc3 {[%emt 0:00:
00]} 33. a4 {[%emt 0:00:34]} Rf5 {[%emt 0:00:44]} 0-1

[Event "44th Chess Olympiad Women 2022"]
[Site "Chennai"]
[Date "2022.08.08"]
[Round "10.37"]
[White "Abdi, Zineb Dina"]
[Black "Marape, Naledi"]
[Result "1-0"]
[WhiteElo "1899"]
[BlackElo "1714"]
[Annotator "NA RC"]
[PlyCount "67"]
[EventDate "2022.??.??"]
[TimeControl "60"]

1. e4 {[%emt 0:00:23]} c5 {[%emt 0:00:05]} 2. Nf3 {[%emt 0:00:04]} d6 {[%emt 0:
00:00]} 3. d4 {[%emt 0:00:10]} cxd4 {[%emt 0:00:06]} 4. Nxd4 {[%emt 0:00:06]}
Nf6 {[%emt 0:00:04]} 5. Nc3 {[%emt 0:00:16]} a6 {[%emt 0:00:06]} 6. Bd3 {
[%emt 0:00:17]} e5 {[%emt 0:00:16]} 7. Nde2 {[%emt 0:00:11]} Be6 {[%emt 0:00:
00]} 8. Bg5 {[%emt 0:05:31]} Nbd7 {[%emt 0:01:09]} 9. O-O {[%emt 0:00:44]} Be7
{[%emt 0:00:13]} 10. Ng3 {[%emt 0:01:16]} O-O {[%emt 0:00:48]} 11. a4 {[%emt 0:
00:00]} h6 {[%emt 0:00:45]} 12. Be3 {[%emt 0:02:41]} Qc7 {[%emt 0:01:28]} 13.
h3 {[%emt 0:03:50]} Rac8 {[%emt 0:00:37]} 14. Qf3 {[%emt 0:04:52]} Rfd8 {
[%emt 0:01:02]} 15. Nd5 {[%emt 0:04:20]} Bxd5 {[%emt 0:00:38]} 16. exd5 {
[%emt 0:00:06]} Nc5 {[%emt 0:00:37]} 17. Bf5 {[%emt 0:02:55]} Rb8 {[%emt 0:00:
00]} 18. b4 {[%emt 0:01:42]} Ncd7 {[%emt 0:01:29]} 19. Bd3 {[%emt 0:03:16]}
Rdc8 {[%emt 0:08:57]} 20. Nf5 {[%emt 0:01:39]} Bf8 {[%emt 0:00:14]} 21. g4 {
[%emt 0:12:00]} e4 {[%emt 0:03:30]} 22. Bxe4 {[%emt 0:02:17]} Nxe4 {[%emt 0:00:
00]} 23. Qxe4 {[%emt 0:00:10]} Qxc2 {[%emt 0:00:48]} 24. Qxc2 {[%emt 0:12:18]}
Rxc2 {[%emt 0:00:22]} 25. Rab1 {[%emt 0:06:50]} Nf6 {[%emt 0:02:46]} 26. Rfd1 {
[%emt 0:01:47]} Ne4 {[%emt 0:01:05]} 27. Rd3 {[%emt 0:04:15]} Nc3 {[%emt 0:00:
00]} 28. Ra1 {[%emt 0:01:01]} Rc8 {[%emt 0:00:26]} 29. Nd4 {[%emt 0:04:00]} Rb2
{[%emt 0:03:10]} 30. Rc1 {[%emt 0:01:18]} Rxb4 {[%emt 0:05:06]} 31. Rdxc3 {
[%emt 0:00:16]} Rxc3 {[%emt 0:00:09]} 32. Rxc3 {[%emt 0:00:04]} Rxa4 {[%emt 0:
00:00]} 33. Rc8 {[%emt 0:00:42]} f6 {[%emt 0:05:08]} 34. Ne6 {[%emt 0:00:25]}
1-0

[Event "44th Chess Olympiad Women 2022"]
[Site "Chennai"]
[Date "2022.08.08"]
[Round "10.37"]
[White "Banda Natalie Katlo"]
[Black "Nassr, Rania"]
[Result "1/2-1/2"]
[WhiteElo "1688"]
[BlackElo "1737"]
[Annotator "NA RC"]
[PlyCount "107"]
[EventDate "2022.??.??"]
[TimeControl "60"]

1. d4 {[%emt 0:00:05]} d5 {[%emt 0:00:09]} 2. Nf3 {[%emt 0:00:14]} Nf6 {
[%emt 0:00:15]} 3. e3 {[%emt 0:00:36]} e6 {[%emt 0:00:18]} 4. Nbd2 {[%emt 0:00:
00]} c5 {[%emt 0:01:07]} 5. c3 {[%emt 0:01:38]} b6 {[%emt 0:00:53]} 6. Bb5+ {
[%emt 0:00:43]} Bd7 {[%emt 0:00:59]} 7. Bd3 {[%emt 0:02:52]} Be7 {[%emt 0:00:
00]} 8. e4 {[%emt 0:02:09]} dxe4 {[%emt 0:01:00]} 9. Nxe4 {[%emt 0:00:48]} Bc6
{[%emt 0:05:40]} 10. Nxf6+ {[%emt 0:02:21]} Bxf6 {[%emt 0:01:01]} 11. dxc5 {
[%emt 0:00:29]} bxc5 {[%emt 0:00:14]} 12. Be2 {[%emt 0:01:11]} Qc7 {[%emt 0:00:
00]} 13. Be3 {[%emt 0:02:18]} Nd7 {[%emt 0:01:01]} 14. Qc2 {[%emt 0:00:38]} Rb8
{[%emt 0:02:24]} 15. Rb1 {[%emt 0:04:32]} Qa5 {[%emt 0:00:57]} 16. b4 {[%emt 0:
00:00]} cxb4 {[%emt 0:01:08]} 17. cxb4 {[%emt 0:03:39]} Rxb4 {[%emt 0:04:04]}
18. Rxb4 {[%emt 0:00:56]} Qxb4+ {[%emt 0:00:18]} 19. Bd2 {[%emt 0:00:54]} Qb7 {
[%emt 0:02:08]} 20. O-O {[%emt 0:02:35]} O-O {[%emt 0:11:10]} 21. Rb1 {[%emt 0:
00:00]} Qa8 {[%emt 0:01:29]} 22. Be3 {[%emt 0:04:20]} h6 {[%emt 0:14:35]} 23.
Rc1 {[%emt 0:02:18]} Bd5 {[%emt 0:01:11]} 24. Qc7 {[%emt 0:01:31]} Nb6 {
[%emt 0:04:16]} 25. Bxb6 {[%emt 0:03:36]} axb6 {[%emt 0:00:18]} 26. Qxb6 {
[%emt 0:00:39]} Qxa2 {[%emt 0:00:36]} 27. Qe3 {[%emt 0:00:51]} Qb2 {[%emt 0:00:
00]} 28. Bd1 {[%emt 0:06:07]} Bxf3 {[%emt 0:06:24]} 29. Rc2 {[%emt 0:01:14]}
Qb1 {[%emt 0:01:13]} 30. Rc1 {[%emt 0:00:54]} Qb4 {[%emt 0:00:32]} 31. Bxf3 {
[%emt 0:00:53]} Bd4 {[%emt 0:04:27]} 32. Qe1 {[%emt 0:00:44]} Qb2 {[%emt 0:00:
00]} 33. Rd1 {[%emt 0:01:49]} Rc8 {[%emt 0:04:10]} 34. Qd2 {[%emt 0:00:56]}
Qxd2 {[%emt 0:01:26]} 35. Rxd2 {[%emt 0:00:04]} e5 {[%emt 0:00:09]} 36. Kf1 {
[%emt 0:00:25]} Kf8 {[%emt 0:00:56]} 37. Ke2 {[%emt 0:00:34]} Ke7 {[%emt 0:00:
00]} 38. Be4 {[%emt 0:00:31]} g6 {[%emt 0:01:28]} 39. Rc2 {[%emt 0:00:26]} Bc5
{[%emt 0:01:49]} 40. f3 {[%emt 0:00:58]} f5 {[%emt 0:00:18]} 41. Bd3 {[%emt 0:
00:00]} Kd6 {[%emt 0:30:45]} 42. h3 {[%emt 0:00:53]} Rf8 {[%emt 0:02:01]} 43.
Ra2 {[%emt 0:00:46]} Kd5 {[%emt 0:00:44]} 44. Ra4 {[%emt 0:00:24]} Rf6 {
[%emt 0:00:40]} 45. Bc4+ {[%emt 0:00:23]} Kc6 {[%emt 0:00:46]} 46. Bd3 {
[%emt 0:00:50]} Bd4 {[%emt 0:00:50]} 47. Ra6+ {[%emt 0:00:18]} Bb6 {[%emt 0:00:
00]} 48. Ra4 {[%emt 0:00:15]} Rd6 {[%emt 0:01:37]} 49. g4 {[%emt 0:02:35]} fxg4
{[%emt 0:02:32]} 50. hxg4 {[%emt 0:01:25]} h5 {[%emt 0:02:29]} 51. gxh5 {
[%emt 0:00:24]} gxh5 {[%emt 0:00:18]} 52. Rh4 {[%emt 0:00:21]} Rh6 {[%emt 0:00:
00]} 53. Bf5 {[%emt 0:00:49]} Bd4 {[%emt 0:01:38]} 54. Bg4 {[%emt 0:00:26]}
1/2-1/2

[Event "44th Chess Olympiad Women 2022"]
[Site "Chennai"]
[Date "2022.08.08"]
[Round "10.37"]
[White "Besa, Masaiti"]
[Black "Nassr, Lina"]
[Result "1/2-1/2"]
[WhiteElo "1745"]
[BlackElo "2011"]
[Annotator "NA RC"]
[PlyCount "72"]
[EventDate "2022.??.??"]
[TimeControl "60"]

1. c4 {[%emt 0:00:12]} c5 {[%emt 0:00:30]} 2. g3 {[%emt 0:00:59]} Nc6 {[%emt 0:
00:00]} 3. Bg2 {[%emt 0:00:46]} e6 {[%emt 0:00:17]} 4. Nc3 {[%emt 0:00:46]} Nf6
{[%emt 0:00:44]} 5. e4 {[%emt 0:08:17]} d6 {[%emt 0:02:00]} 6. Nge2 {[%emt 0:
00:00]} Nd4 {[%emt 0:02:13]} 7. O-O {[%emt 0:04:13]} g6 {[%emt 0:01:53]} 8. Rb1
{[%emt 0:09:41]} e5 {[%emt 0:26:56]} 9. d3 {[%emt 0:12:56]} Bg7 {[%emt 0:01:12]
} 10. Bg5 {[%emt 0:17:08]} h6 {[%emt 0:02:34]} 11. Bxf6 {[%emt 0:05:21]} Bxf6 {
[%emt 0:00:18]} 12. Nxd4 {[%emt 0:00:07]} cxd4 {[%emt 0:04:28]} 13. Nd5 {
[%emt 0:03:06]} O-O {[%emt 0:07:02]} 14. f4 {[%emt 0:03:38]} Bd7 {[%emt 0:00:
00]} 15. Nxf6+ {[%emt 0:26:34]} Qxf6 {[%emt 0:00:06]} 16. fxe5 {[%emt 0:00:04]}
Qxe5 {[%emt 0:00:06]} 17. Qd2 {[%emt 0:01:21]} Kg7 {[%emt 0:00:38]} 18. Rf2 {
[%emt 0:01:23]} Rae8 {[%emt 0:01:48]} 19. Rbf1 {[%emt 0:00:59]} b6 {[%emt 0:00:
00]} 20. Qf4 {[%emt 0:00:38]} f6 {[%emt 0:02:26]} 21. Qd2 {[%emt 0:01:01]} Bc6
{[%emt 0:02:41]} 22. b4 {[%emt 0:00:48]} a6 {[%emt 0:01:37]} 23. a3 {[%emt 0:
00:00]} Bd7 {[%emt 0:01:02]} 24. Qf4 {[%emt 0:00:36]} Rc8 {[%emt 0:04:16]} 25.
Rc1 {[%emt 0:00:31]} Rc7 {[%emt 0:01:05]} 26. Qxe5 {[%emt 0:00:38]} dxe5 {
[%emt 0:01:26]} 27. Bf1 {[%emt 0:00:26]} Rfc8 {[%emt 0:05:11]} 28. Bg2 {
[%emt 0:00:34]} Be6 {[%emt 0:02:34]} 29. Rcf1 {[%emt 0:00:12]} Rf7 {[%emt 0:00:
00]} 30. h4 {[%emt 0:00:42]} b5 {[%emt 0:02:49]} 31. c5 {[%emt 0:00:56]} a5 {
[%emt 0:00:36]} 32. Ra1 {[%emt 0:00:26]} Ra7 {[%emt 0:01:24]} 33. Rff1 {
[%emt 0:00:43]} Rca8 {[%emt 0:04:47]} 34. Rac1 {[%emt 0:00:19]} axb4 {[%emt 0:
00:00]} 35. axb4 {[%emt 0:00:04]} Ra3 {[%emt 0:01:11]} 36. Rfd1 {[%emt 0:00:31]
} Bh3 {[%emt 0:02:47]} 1/2-1/2

[Event "44th Chess Olympiad Women 2022"]
[Site "Chennai"]
[Date "2022.08.08"]
[Round "10.37"]
[White "Hamza, Amira"]
[Black "Otisitswe Ruth"]
[Result "1/2-1/2"]
[WhiteElo "1848"]
[BlackElo "1552"]
[Annotator "NA RC"]
[PlyCount "112"]
[EventDate "2022.??.??"]
[TimeControl "60"]

1. d4 {[%emt 0:00:08]} Nf6 {[%emt 0:00:11]} 2. Nf3 {[%emt 0:00:11]} e6 {
[%emt 0:00:12]} 3. g3 {[%emt 0:00:12]} b5 {[%emt 0:00:09]} 4. a4 {[%emt 0:00:
00]} b4 {[%emt 0:00:17]} 5. c4 {[%emt 0:00:23]} Bb7 {[%emt 0:00:41]} 6. Bg2 {
[%emt 0:00:11]} Qc8 {[%emt 0:00:39]} 7. O-O {[%emt 0:06:57]} Be7 {[%emt 0:00:
00]} 8. Bf4 {[%emt 0:01:23]} d6 {[%emt 0:00:07]} 9. Nbd2 {[%emt 0:01:22]} O-O {
[%emt 0:03:58]} 10. Re1 {[%emt 0:01:50]} c5 {[%emt 0:00:54]} 11. dxc5 {[%emt 0:
00:00]} dxc5 {[%emt 0:00:43]} 12. Qc2 {[%emt 0:01:01]} Nc6 {[%emt 0:03:34]} 13.
Rad1 {[%emt 0:01:13]} Rd8 {[%emt 0:00:52]} 14. Nb3 {[%emt 0:01:32]} Rxd1 {
[%emt 0:14:14]} 15. Rxd1 {[%emt 0:00:17]} Qf8 {[%emt 0:00:28]} 16. Ne5 {
[%emt 0:03:14]} Nxe5 {[%emt 0:07:42]} 17. Bxb7 {[%emt 0:00:37]} Rb8 {[%emt 0:
00:00]} 18. Bg2 {[%emt 0:00:37]} Nfd7 {[%emt 0:00:06]} 19. Bxe5 {[%emt 0:07:15]
} Nxe5 {[%emt 0:00:13]} 20. Qe4 {[%emt 0:00:27]} Bf6 {[%emt 0:03:39]} 21. h4 {
[%emt 0:08:53]} Rc8 {[%emt 0:03:21]} 22. Rd2 {[%emt 0:09:06]} Qe8 {[%emt 0:00:
00]} 23. f4 {[%emt 0:02:19]} Ng6 {[%emt 0:07:26]} 24. Qb7 {[%emt 0:03:15]} Rd8
{[%emt 0:03:17]} 25. Qxa7 {[%emt 0:07:02]} Rxd2 {[%emt 0:01:24]} 26. Nxd2 {
[%emt 0:00:07]} Bxb2 {[%emt 0:03:37]} 27. Qa8 {[%emt 0:03:35]} Qxa8 {[%emt 0:
00:00]} 28. Bxa8 {[%emt 0:00:08]} Bf6 {[%emt 0:00:33]} 29. a5 {[%emt 0:03:54]}
Bd8 {[%emt 0:00:06]} 30. a6 {[%emt 0:00:06]} Bb6 {[%emt 0:00:05]} 31. Nb3 {
[%emt 0:04:06]} Ne7 {[%emt 0:02:20]} 32. e4 {[%emt 0:00:13]} Nc8 {[%emt 0:00:
00]} 33. Kf2 {[%emt 0:03:55]} Ba7 {[%emt 0:01:27]} 34. Ke3 {[%emt 0:00:25]} Nb6
{[%emt 0:00:20]} 35. Bc6 {[%emt 0:01:48]} Nxc4+ {[%emt 0:02:12]} 36. Kd3 {
[%emt 0:00:07]} Nd6 {[%emt 0:03:26]} 37. Na5 {[%emt 0:01:13]} Bb6 {[%emt 0:00:
00]} 38. Nc4 {[%emt 0:00:38]} Nxc4 {[%emt 0:00:15]} 39. Kxc4 {[%emt 0:00:02]}
Kf8 {[%emt 0:00:21]} 40. Ba4 {[%emt 0:00:35]} Ke7 {[%emt 0:03:47]} 41. Kb5 {
[%emt 0:30:18]} Ba7 {[%emt 0:30:08]} 42. Kc6 {[%emt 0:00:20]} c4 {[%emt 0:00:
00]} 43. Kb5 {[%emt 0:00:17]} c3 {[%emt 0:13:29]} 44. Kxb4 {[%emt 0:00:13]} Kd6
{[%emt 0:00:07]} 45. Kxc3 {[%emt 0:01:15]} Kc7 {[%emt 0:00:15]} 46. g4 {
[%emt 0:03:35]} Be3 {[%emt 0:00:00]} 47. Be8 {[%emt 0:00:00]} f6 {[%emt 0:00:
00]} 48. Bf7 {[%emt 0:00:00]} Bxf4 {[%emt 0:00:00]} 49. Bxe6 {[%emt 0:00:00]}
Kb6 {[%emt 0:00:00]} 50. Bc8 {[%emt 0:00:00]} h5 {[%emt 0:00:00]} 51. gxh5 {
[%emt 0:00:00]} Bg3 {[%emt 0:00:00]} 52. Kd4 {[%emt 0:00:00]} Bxh4 {[%emt 0:00:
00]} 53. Kd5 {[%emt 0:00:00]} Bg5 {[%emt 0:00:00]} 54. Ke6 {[%emt 0:00:00]} Be3
{[%emt 0:00:00]} 55. Kf7 {[%emt 0:00:00]} Bh6 {[%emt 0:00:00]} 56. Kg6 {
[%emt 0:00:00]} Ka7 {[%emt 0:00:00]} 1/2-1/2